bitfinex-derivatives/quotes_SOLF0:USTF0_20250522
["timestamp","ask_amount","ask_price","bid_price","bid_amount"]
[1747924013139,0.03757696,177.97,177.93,0.04111341]
[1747924014439,5.65597696,177.97,177.93,0.04111341]
[1747924015941,5.65597696,177.97,177.93,5.66061341]
[1747924016344,5.65597696,177.97,177.93,0.04111341]
[1747924016742,5.65597696,177.97,177.93,5.66061341]
[1747924017543,5.6188,177.96,177.93,5.66061341]
[1747924017742,0.03757696,177.97,177.93,5.66061341]
[1747924018042,5.65607696,177.97,177.93,5.66061341]
[1747924018441,0.03757696,177.97,177.94,5.6193]
[1747924018639,0.03757696,177.97,177.93,0.04111341]
[1747924019137,5.6187,177.96,177.93,5.66061341]
[1747924019333,0.03757696,177.97,177.93,0.04111341]
[1747924020347,5.6193,177.94,177.93,0.04111341]
[1747924021147,5.6199,177.93,177.89,129.44]
[1747924021350,131.3876,177.99,177.89,129.44]
[1747924021648,5.6198,177.93,177.89,135.0607]
[1747924021832,131.3876,177.99,177.89,129.44]
[1747924022145,0.04154536,177.96,177.92,0.03911746]
[1747924022346,0.04154536,177.96,177.85,129.46]
[1747924022543,131.3876,177.99,177.85,135.0821]
[1747924022746,5.6211,177.89,177.85,135.0821]
[1747924023046,129.46,177.94,177.85,129.46]
[1747924023354,0.03963953,177.91,177.85,129.46]
[1747924024342,2.0524,178.01,177.86,0.03778191]
[1747924024643,2.0524,178.01,177.85,129.46]
[1747924024839,7.6698,178.01,177.97,5.6183]
[1747924025040,2.0524,178.01,177.95,129.48]
[1747924025348,0.03678652,178.0,177.96,0.0417852]
[1747924026242,0.03678652,178.0,177.99,5.6177]
[1747924027248,6.89436111,178.08,177.99,5.62]
[1747924027452,6.89436111,178.08,178.0,129.48]
[1747924027652,6.89436111,178.08,178.01,106.78]
[1747924027842,5.614,178.11,178.01,106.78]
[1747924028042,6.0519,178.14,178.01,106.78]
[1747924028243,0.03663775,178.09,178.06,0.03859147]
[1747924028444,0.03663775,178.09,178.06,129.51859147]
[1747924028753,0.03663775,178.09,178.08,5.6149]
[1747924029055,6.89436111,178.17,178.06,129.51859147]
[1747924029254,6.89436111,178.17,178.1,5.614]
[1747924029549,131.5213,178.19,178.06,129.48]
[1747924029852,0.03849426,178.14,178.11,0.04158499]
[1747924030249,0.03849426,178.14,178.11,129.48158499]
[1747924030751,5.65169426,178.14,178.11,129.48158499]
[1747924031549,0.03849426,178.14,178.11,129.48158499]
[1747924032056,0.03849426,178.14,178.05,129.44]
[1747924032352,131.5213,178.19,178.05,129.44]
[1747924033149,0.04086171,178.14,178.1,0.04135871]
[1747924033958,5.614,178.11,178.1,0.04135871]
[1747924034854,0.04086171,178.14,178.1,0.04135871]
[1747924035454,5.614,178.11,178.1,0.04135871]
[1747924036455,0.04086171,178.14,178.1,0.04135871]
[1747924036653,0.04086171,178.14,178.11,5.6139]
[1747924036847,0.04086171,178.14,178.1,0.04135871]
[1747924038355,0.04086171,178.14,178.11,5.6137]
[1747924038554,0.04086171,178.14,178.1,0.04135871]
[1747924039256,5.614,178.11,178.1,0.04135871]
[1747924039851,0.04086171,178.14,178.12,5.6136]
[1747924040245,0.04086171,178.14,178.1,0.04135871]
[1747924040645,0.04086171,178.14,178.1,129.22135871]
[1747924040863,0.04086171,178.14,178.12,5.6136]
[1747924041060,0.04086171,178.14,178.1,129.22135871]
[1747924041561,0.04086171,178.14,178.13,5.6133]
[1747924044966,6.171e-05,178.14,178.13,5.6133]
[1747924046962,6.171e-05,178.14,178.12,5.6136]
[1747924047261,6.171e-05,178.14,178.1,0.04135871]
[1747924048158,5.61316171,178.14,178.1,5.65545871]
[1747924048862,6.171e-05,178.14,178.1,0.04135871]
[1747924049462,6.171e-05,178.14,178.13,5.6133]
[1747924053269,6.171e-05,178.14,178.13,134.7533]
[1747924054965,6.171e-05,178.14,178.13,129.14]
[1747924055562,6.171e-05,178.14,178.13,134.7533]
[1747924055764,6.171e-05,178.14,178.13,129.14]
[1747924056268,6.171e-05,178.14,178.13,134.7533]
[1747924060879,5.8163,178.25,178.13,134.76]
[1747924061082,1.8785,178.25,178.14,1.8881]
[1747924061265,1.8785,178.25,178.14,2.938]
[1747924061773,0.03644435,178.21,178.18,0.03811461]
[1747924062075,0.03644435,178.21,178.2,5.6111]
[1747924062380,3.9956,178.3,178.19,129.12]
[1747924062570,1.9535,178.32,178.19,129.12]
[1747924062869,7.561,178.32,178.19,129.12]
[1747924063074,1.9535,178.32,178.29,5.6083]
[1747924063373,7.60131599,178.32,178.29,0.03845601]
[1747924063674,0.04041599,178.32,178.29,0.03845601]
[1747924064570,5.608,178.31,178.29,0.03845601]
[1747924064870,0.04041599,178.32,178.29,0.03845601]
[1747924065073,5.608,178.3,178.29,0.03845601]
[1747924065770,5.6077,178.31,178.29,0.03845601]
[1747924065975,0.04041599,178.32,178.29,0.03845601]
[1747924066574,5.608,178.3,178.29,0.03845601]
[1747924066884,0.04041599,178.32,178.29,0.03845601]
[1747924067066,5.608,178.3,178.29,0.03845601]
[1747924067567,5.6077,178.31,178.29,0.03845601]
[1747924067766,0.04041599,178.32,178.29,0.03845601]
[1747924070374,0.04041599,178.32,178.29,5.64665601]
[1747924071074,0.04041599,178.32,178.29,0.03845601]
[1747924071877,0.04041599,178.32,178.3,129.0]
[1747924072381,0.04041599,178.32,178.31,5.6077]
[1747924072682,2.0281,178.44,178.31,106.6]
[1747924072978,3.9988,178.44,178.31,108.5274]
[1747924073376,3.9988,178.44,178.36,5.606]
[1747924073582,0.03747758,178.42,178.38,0.03810364]
[1747924074178,5.6045,178.41,178.38,0.03810364]
[1747924074881,0.03747758,178.42,178.38,0.03810364]
[1747924075481,0.03747758,178.42,178.41,5.6045]
[1747924077178,4.0215,178.49,178.4,128.96]
[1747924077381,128.96,178.54,178.41,106.56]
[1747924077783,134.9844,178.58,178.41,106.56]
[1747924077983,5.6008,178.53,178.41,106.56]
[1747924078286,0.03744227,178.49,178.45,0.04246198]
[1747924078485,0.03862073,178.49,178.46,128.94]
[1747924079384,134.9844,178.58,178.46,128.94]
[1747924079585,6.0444,178.58,178.46,128.94]
[1747924079984,128.94,178.62,178.46,128.94]
[1747924080393,6.0993,178.64,178.46,128.94]
[1747924080689,0.04152867,178.56,178.52,0.0359801]
[1747924080889,2.0593,178.64,178.53,235.48]
[1747924081389,2.0593,178.64,178.51,484.32]
[1747924081595,2.0593,178.64,178.54,235.4]
[1747924081890,0.03659169,178.61,178.57,0.04021753]
[1747924082489,5.63489169,178.61,178.57,0.04021753]
[1747924082689,0.03659169,178.61,178.57,0.04021753]
[1747924083592,0.03659169,178.61,178.6,5.5986]
[1747924083785,2.0685,178.72,178.57,0.04021753]
[1747924084094,2.0685,178.72,178.56,128.9]
[1747924084389,3.8519,178.76,178.62,17.47297108]
[1747924084589,3.8519,178.76,178.63,238.4314]
[1747924084794,0.03576629,178.71,178.68,0.03848072]
[1747924084982,0.03576629,178.71,178.69,128.86]
[1747924085583,0.03576629,178.71,178.68,0.03848072]
[1747924085779,0.03576629,178.71,178.63,128.86]
[1747924086595,5.5966,178.67,178.63,128.86]
[1747924086788,0.03959561,178.67,178.63,128.90115777]
[1747924087482,0.03959561,178.67,178.63,0.04115777]
[1747924088089,5.5977,178.63,178.58,5.599]
[1747924088291,5.5977,178.63,178.53,612.78]
[1747924088487,2.0436,178.66,178.53,612.78]
[1747924088687,5.5971,178.65,178.6,5.5983]
[1747924088889,2.0436,178.66,178.58,128.8]
[1747924089087,0.04065779,178.64,178.6,0.03793951]
[1747924090394,5.598,178.62,178.6,0.03793951]
[1747924090894,0.04065779,178.64,178.58,128.8]
[1747924091093,0.04065779,178.64,178.55,128.78]
[1747924091902,0.04065779,178.64,178.58,0.03641263]
[1747924092099,5.5989,178.59,178.58,0.03641263]
[1747924092296,0.03559366,178.6,178.55,128.78]
[1747924093294,0.03559366,178.6,178.56,0.04195821]
[1747924093598,128.66,178.6,178.5,128.66]
[1747924094192,5.6003,178.55,178.51,5.6013]
[1747924094500,0.03975701,178.55,178.51,0.04103032]
[1747924095699,5.6005,178.54,178.51,0.04103032]
[1747924096093,11.1876,178.76,178.51,457.04103032]
[1747924096292,2.0245,178.73,178.51,381.0]
[1747924096492,2.0245,178.73,178.52,64.5392]
[1747924097204,5.596,178.69,178.64,5.5971]
[1747924097398,0.03901615,178.68,178.65,0.03746891]
[1747924097899,0.03901615,178.68,178.67,5.5964]
[1747924099094,0.03901615,178.68,178.66,128.66]
[1747924099401,0.03901615,178.68,178.66,134.2566]
[1747924099993,0.03901615,178.68,178.65,0.03746891]
[1747924100595,5.5964,178.67,178.65,0.03746891]
[1747924100791,0.03901615,178.68,178.65,0.03746891]
[1747924100986,0.03901615,178.68,178.65,5.63446891]
[1747924101188,0.03901615,178.68,178.65,0.03746891]
[1747924101993,5.5967,178.66,178.65,0.03746891]
[1747924103007,0.03901615,178.68,178.61,128.64]
[1747924103602,5.5972,178.65,178.61,134.2382]
[1747924103807,0.03901615,178.68,178.61,128.64]
[1747924104004,0.03901615,178.68,178.63,0.0415146]
[1747924106504,0.03901615,178.68,178.66,5.5965]
[1747924108602,0.03901615,178.68,178.63,0.0415146]
[1747924108904,5.63511615,178.68,178.63,0.0415146]
[1747924109602,0.03901615,178.68,178.63,0.0415146]
[1747924110605,0.03901615,178.68,178.66,5.5966]
[1747924110910,0.03901615,178.68,178.63,0.0415146]
[1747924111207,0.03901615,178.68,178.66,5.5964]
[1747924111409,0.03901615,178.68,178.63,0.0415146]
[1747924112311,0.03901615,178.68,178.67,5.5964]
[1747924112616,0.03901615,178.68,178.66,128.6]
[1747924112909,0.03901615,178.68,178.66,134.1965]
[1747924113112,0.03901615,178.68,178.66,128.6]
[1747924113308,0.03901615,178.68,178.63,0.0415146]
[1747924116306,5.5973,178.64,178.63,0.0415146]
[1747924116510,0.03901615,178.68,178.63,0.0415146]
[1747924116702,0.03901615,178.68,178.63,5.6391146]
[1747924117202,5.5969,178.66,178.63,0.0415146]
[1747924117502,0.03901615,178.68,178.63,0.0415146]
[1747924117699,0.03901615,178.68,178.63,5.6389146]
[1747924118004,0.03901615,178.68,178.63,0.0415146]
[1747924118407,5.5966,178.67,178.63,5.6390146]
[1747924118612,0.03901615,178.68,178.63,0.0415146]
[1747924119109,5.5972,178.65,178.63,0.0415146]
[1747924119412,0.03901615,178.68,178.63,0.0415146]
[1747924119918,5.5969,178.66,178.63,0.0415146]
[1747924120719,0.03901615,178.68,178.63,0.0415146]
[1747924121016,0.03901615,178.68,178.64,5.5971]
[1747924121314,0.03901615,178.68,178.63,0.0415146]
[1747924121617,5.5967,178.66,178.63,5.6391146]
[1747924121815,5.5967,178.66,178.63,0.0415146]
[1747924122219,5.63511615,178.68,178.64,5.597]
[1747924122410,0.03901615,178.68,178.64,5.597]
[1747924122610,0.03901615,178.68,178.63,0.0415146]
[1747924123619,5.5969,178.66,178.63,5.6389146]
[1747924123818,0.03901615,178.68,178.63,0.0415146]
[1747924124319,5.5967,178.66,178.63,5.6389146]
[1747924124619,0.03901615,178.68,178.63,0.0415146]
[1747924125817,5.5967,178.66,178.63,5.6389146]
[1747924126016,0.03901615,178.68,178.63,0.0415146]
[1747924126318,5.5965,178.67,178.64,5.5971]
[1747924126520,0.03901615,178.68,178.63,0.0415146]
[1747924126821,5.5966,178.67,178.64,5.5973]
[1747924127115,0.03901615,178.68,178.63,0.0415146]
[1747924127319,5.5969,178.66,178.63,5.6389146]
[1747924127522,0.03901615,178.68,178.63,0.0415146]
[1747924128219,5.5966,178.67,178.64,5.5971]
[1747924128418,0.03901615,178.68,178.63,0.0415146]
[1747924128922,5.5973,178.64,178.63,0.0415146]
[1747924129116,0.03901615,178.68,178.63,0.0415146]
[1747924129420,5.5973,178.64,178.63,0.0415146]
[1747924133018,0.03901615,178.68,178.63,0.0415146]
[1747924136129,5.5973,178.64,178.63,0.0415146]
[1747924137026,0.03901615,178.68,178.63,0.0415146]
[1747924137930,5.5965,178.67,178.64,5.5971]
[1747924138837,5.5967,178.66,178.64,5.5971]
[1747924139431,5.5967,178.66,178.63,5.6390146]
[1747924140029,5.5964,178.67,178.64,5.5971]
[1747924140531,5.63521615,178.68,178.65,5.597]
[1747924142233,5.5964,178.67,178.64,5.5972]
[1747924142735,5.63521615,178.68,178.65,5.5969]
[1747924143334,5.63521615,178.68,178.63,0.0415146]
[1747924143335,0.03901615,178.68,178.67,5.5964]
[1747924144640,0.03901615,178.68,178.63,0.0415146]
[1747924145332,0.03901615,178.68,178.66,5.5965]
[1747924145531,0.03901615,178.68,178.63,0.0415146]
[1747924145730,0.03901615,178.68,178.67,5.5964]
[1747924145928,0.03901615,178.68,178.63,0.0415146]
[1747924146239,0.03901615,178.68,178.67,5.5964]
[1747924146933,0.03901615,178.68,178.66,5.5966]
[1747924147127,0.03901615,178.68,178.63,0.0415146]
[1747924147631,0.03901615,178.68,178.67,5.5964]
[1747924153442,0.03901615,178.68,178.66,5.5964]
[1747924154037,5.19649173,178.74,178.65,245.83979005]
[1747924154236,5.19649173,178.74,178.73,5.5945]
[1747924154933,5.19649173,178.74,178.72,5.5947]
[1747924155129,5.19649173,178.74,178.71,128.20282997]
[1747924155336,5.19649173,178.74,178.71,0.04282997]
[1747924155537,0.03534594,178.75,178.71,0.04282997]
[1747924156041,0.03534594,178.75,178.72,5.5945]
[1747924156544,0.03534594,178.75,178.73,5.5942]
[1747924156744,0.03534594,178.75,178.71,0.04282997]
[1747924158845,5.5944,178.74,178.71,0.04282997]
[1747924159455,5.5945,178.73,178.71,0.04282997]
[1747924159645,0.03534594,178.75,178.67,128.16]
[1747924159646,2.0509,178.74,178.67,128.16]
[1747924159841,2.0509,178.74,178.64,4.62662627]
[1747924159842,15.12679005,178.74,178.64,4.62662627]
[1747924160041,5.5954,178.7,178.64,4.62662627]
[1747924160243,128.14,178.72,178.66,5.5964]
[1747924160443,5.5955,178.7,178.64,4.62662627]
[1747924160645,0.04107024,178.69,178.65,0.03780573]
[1747924161650,5.5967,178.66,178.65,0.03780573]
[1747924161857,0.04107024,178.69,178.65,0.03780573]
[1747924162352,5.5975,178.64,178.57,239.08662627]
[1747924162854,5.5975,178.64,178.59,5.5986]
[1747924162855,5.5973,178.64,178.59,5.5986]
[1747924163151,0.0390403,178.63,178.6,0.03570978]
[1747924164554,0.0390403,178.63,178.61,5.598]
[1747924165752,0.0390403,178.63,178.62,5.5979]
[1747924168252,0.0390403,178.63,178.6,0.03570978]
[1747924168952,0.0390403,178.63,178.62,5.5979]
[1747924172863,0.0390403,178.63,178.61,5.5982]
[1747924173156,0.0390403,178.63,178.6,0.03570978]
[1747924173460,0.0390403,178.63,178.62,5.5979]
[1747924175461,0.0390403,178.63,178.61,5.5981]
[1747924176067,0.0390403,178.63,178.62,5.5979]
[1747924181763,0.0390403,178.63,178.62,133.7779]
[1747924185179,4.03e-05,178.63,178.62,133.7779]
[1747924185674,4.03e-05,178.63,178.62,240.0979]
[1747924188077,7.5479,178.72,178.68,5.5958]
[1747924188573,7.5479,178.72,178.69,5.5955]
[1747924189075,7.58980051,178.72,178.69,5.63700692]
[1747924189371,5.5951,178.71,178.69,0.04150692]
[1747924189974,7.58970051,178.72,178.69,5.63710692]
[1747924190375,1.99490051,178.72,178.69,0.04150692]
[1747924191579,1.99490051,178.72,178.69,5.63700692]
[1747924192281,7.58990051,178.72,178.69,5.63700692]
[1747924192477,1.99490051,178.72,178.69,0.04150692]
[1747924193080,5.5953,178.71,178.69,0.04150692]
[1747924193977,5.5954,178.7,178.69,0.04150692]
[1747924196277,5.5951,178.71,178.69,0.04150692]
[1747924197077,5.5954,178.7,178.69,0.04150692]
[1747924197279,0.04190051,178.72,178.69,0.04150692]
[1747924198078,5.5951,178.71,178.69,0.04150692]
[1747924199681,5.5951,178.71,178.69,5.63720692]
[1747924200179,5.5954,178.7,178.69,0.04150692]
[1747924200982,5.5952,178.71,178.69,0.04150692]
[1747924201188,0.04190051,178.72,178.69,0.04150692]
[1747924201687,5.5951,178.71,178.69,0.04150692]
[1747924202189,5.5954,178.7,178.69,0.04150692]
[1747924202578,0.04190051,178.72,178.7,5.5952]
[1747924202784,0.04190051,178.72,178.69,0.04150692]
[1747924203090,0.04190051,178.72,178.71,5.5951]
[1747924205996,0.04190051,178.72,178.71,111.9351]
[1747924210594,0.04190051,178.72,178.71,5.5951]
[1747924213598,0.04190051,178.72,178.69,234.44150692]
[1747924214098,0.04190051,178.72,178.69,240.03710692]
[1747924214300,0.04190051,178.72,178.69,234.44150692]
[1747924214700,0.04190051,178.72,178.7,5.5954]
[1747924215007,0.04190051,178.72,178.69,234.44150692]
[1747924215702,0.04190051,178.72,178.7,5.5954]
[1747924216489,0.04190051,178.72,178.69,234.44150692]
[1747924217000,0.04190051,178.72,178.71,5.5951]
[1747924219597,0.04190051,178.72,178.69,0.04150692]
[1747924219796,0.04190051,178.72,178.64,4.65882314]
[1747924220104,5.5966,178.67,178.66,4.65882314]
[1747924220302,0.04190051,178.72,178.63,6.21186658]
[1747924220303,127.9,178.7,178.63,6.21186658]
[1747924220812,0.04142516,178.68,178.65,0.04183332]
[1747924221299,0.04142516,178.68,178.66,5.5964]
[1747924221500,0.04142516,178.68,178.65,0.04183332]
[1747924221899,0.04142516,178.68,178.67,5.5964]
[1747924222698,0.04142516,178.68,178.66,5.5965]
[1747924222914,0.04142516,178.68,178.65,0.04183332]
[1747924223207,0.04142516,178.68,178.67,5.5963]
[1747924226607,0.04142516,178.68,178.67,239.8563]
[1747924229107,2.516e-05,178.68,178.67,239.8563]
[1747924229810,2.0727,178.79,178.67,239.86]
[1747924230109,2.0727,178.79,178.69,11.01979005]
[1747924230314,2.0727,178.79,178.76,5.5933]
[1747924230703,2.1144323,178.79,178.76,0.03645712]
[1747924230903,2.1144323,178.79,178.77,5.593]
[1747924231103,2.1144323,178.79,178.76,0.03645712]
[1747924231802,0.0417323,178.79,178.76,0.03645712]
[1747924232004,0.0417323,178.79,178.76,5.62995712]
[1747924232315,0.0417323,178.79,178.76,0.03645712]
[1747924232615,0.0417323,178.79,178.78,5.5929]
[1747924234104,0.0417323,178.79,178.78,133.4929]
[1747924234810,5.21759155,178.85,178.78,127.9]
[1747924235311,1.8841,178.87,178.85,5.5906]
[1747924235510,1.8841,178.87,178.81,106.3]
[1747924235709,0.04219882,178.86,178.82,0.04297349]
[1747924236018,6.96150914,178.91,178.83,127.9]
[1747924236315,82.522509,179.12,178.9,10.98004834]
[1747924236519,82.522509,179.12,179.06,5.5842]
[1747924236705,82.522509,179.12,179.06,250.46004834]
[1747924236901,34.80754571,179.15,179.06,250.46004834]
[1747924237104,34.80754571,179.15,179.14,5.5817]
[1747924237314,99.06338557,179.16,179.14,239.46]
[1747924238111,99.06338557,179.16,179.13,239.48292613]
[1747924238615,0.03637476,179.16,179.13,239.48292613]
[1747924239415,0.03637476,179.16,179.14,4.17743198]
[1747924239610,0.03637476,179.16,179.15,5.5814]
[1747924240808,0.03637476,179.16,179.15,4.17743198]
[1747924241209,0.03637476,179.16,179.13,0.04292613]
[1747924242915,0.03637476,179.16,179.13,5.62492613]
[1747924243116,0.03637476,179.16,179.13,0.04292613]
[1747924243508,5.61767476,179.16,179.13,0.04292613]
[1747924243713,0.03637476,179.16,179.13,0.04292613]
[1747924244805,0.03637476,179.16,179.13,5.62492613]
[1747924245105,0.03637476,179.16,179.13,0.04292613]
[1747924245821,0.03637476,179.16,179.14,5.5816]
[1747924246023,0.03637476,179.16,179.13,0.04292613]
[1747924246615,0.03637476,179.16,179.04,483.38]
[1747924246818,5.5826,179.12,179.06,5.584]
[1747924247018,1.9255,179.11,179.05,138.76]
[1747924247320,1.9255,179.11,179.03,106.14]
[1747924247710,0.03919255,179.09,179.05,0.0414358]
[1747924248107,0.03919255,179.09,178.97,109.32734364]
[1747924248313,138.76,179.08,178.97,248.08734364]
[1747924248617,1.9108,179.07,178.97,248.08734364]
[1747924249011,5.5848,179.04,178.98,5.5864]
[1747924249208,0.04293144,179.03,178.99,0.04136203]
[1747924249818,0.04293144,179.03,178.93,138.74]
[1747924250024,1.9108,179.07,178.93,138.74]
[1747924250211,5.5854,179.02,178.93,138.74]
[1747924250621,0.03917632,178.99,178.96,0.04291649]
[1747924252128,0.03917632,178.99,178.97,5.5867]
[1747924252624,0.03917632,178.99,178.98,5.5867]
[1747924253822,0.03917632,178.99,178.96,5.62991649]
[1747924254019,0.03917632,178.99,178.96,0.04291649]
[1747924254322,0.03917632,178.99,178.97,4.76362412]
[1747924255019,0.03917632,178.99,178.97,10.35052412]
[1747924255422,0.03917632,178.99,178.97,4.76362412]
[1747924255823,0.03917632,178.99,178.98,4.76362412]
[1747924257014,0.03917632,178.99,178.97,5.5867]
[1747924257217,0.03917632,178.99,178.96,0.04291649]
[1747924259425,0.03917632,178.99,178.97,5.587]
[1747924259624,0.03917632,178.99,178.96,0.04291649]
[1747924260026,0.03917632,178.99,178.98,5.5867]
[1747924260625,0.03917632,178.99,178.97,5.5869]
[1747924260828,0.03917632,178.99,178.96,0.04291649]
[1747924261723,5.587,178.97,178.96,0.04291649]
[1747924261925,0.03917632,178.99,178.89,138.78]
[1747924262127,5.5875,178.96,178.89,138.78]
[1747924262433,2.0245,179.0,178.91,5.5887]
[1747924262731,19.28602975,179.0,178.88,48.76]
[1747924263122,0.04293451,178.96,178.92,0.04089707]
[1747924263327,138.78,178.95,178.88,39.4435]
[1747924263726,5.5893,178.9,178.88,39.4435]
[1747924264024,138.8,178.94,178.83,106.14]
[1747924264231,0.03592724,178.9,178.83,106.14]
[1747924264425,5.5898,178.88,178.84,5.591]
[1747924264637,0.03592724,178.9,178.82,6.21186658]
[1747924264927,0.03592724,178.9,178.84,4.74576598]
[1747924265536,138.8,178.89,178.84,4.74576598]
[1747924266136,138.8,178.89,178.78,3.18734364]
[1747924266338,0.04189039,178.85,178.78,3.18734364]
[1747924266537,0.04189039,178.85,178.79,44.74]
[1747924266741,5.63289039,178.85,178.8,5.5923]
[1747924266942,0.04189039,178.85,178.79,44.74]
[1747924267234,138.84,178.84,178.79,44.74]
[1747924267645,138.84,178.84,178.73,6.21186658]
[1747924267832,138.84,178.84,178.7,138.84]
[1747924267833,0.03972529,178.8,178.71,5.5951]
[1747924268033,138.84,178.79,178.69,3.8891]
[1747924268235,0.03639407,178.76,178.69,3.8891]
[1747924268435,0.03639407,178.76,178.69,2.004]
[1747924268833,5.62999407,178.76,178.71,5.5948]
[1747924269038,0.03639407,178.76,178.7,4.76324974]
[1747924270536,0.03639407,178.76,178.71,4.76324974]
[1747924270938,138.88,178.75,178.71,4.76324974]
[1747924271847,138.88,178.75,178.64,15.2]
[1747924272147,5.6344233,178.71,178.65,5.5967]
[1747924272349,138.88,178.7,178.64,15.2]
[1747924272851,0.0393233,178.71,178.64,15.2]
[1747924273547,0.0393233,178.71,178.65,4.75947298]
[1747924273748,5.6345233,178.71,178.65,10.35627298]
[1747924274049,0.0393233,178.71,178.65,4.75947298]
[1747924274941,0.0393233,178.71,178.64,15.2]
[1747924277358,5.5958,178.69,178.64,20.7972]
[1747924277542,0.0393233,178.71,178.64,15.2]
[1747924278950,483.06,178.79,178.64,15.2]
[1747924279145,139.84,178.83,178.65,106.32]
[1747924279449,5.5927,178.79,178.65,111.06187392]
[1747924279654,139.84,178.83,178.65,111.06187392]
[1747924280050,0.03839113,178.76,178.72,0.03602963]
[1747924280349,17.32460074,178.98,178.73,483.44]
[1747924280546,17.32460074,178.93,178.74,248.2094]
[1747924280747,139.84,178.92,178.75,4.74187392]
[1747924281260,0.03991167,178.85,178.82,0.03617588]
[1747924281551,0.03647425,178.85,178.82,0.03617588]
[1747924282748,5.5913,178.83,178.82,0.03617588]
[1747924283449,5.5932,178.77,178.76,4.74187392]
[1747924283753,5.5932,178.77,178.74,2.0494]
[1747924283754,139.82,178.82,178.72,5.5948]
[1747924284055,5.5937,178.76,178.71,139.82]
[1747924284356,0.0359266,178.75,178.72,0.03918973]
[1747924284747,139.82,178.85,178.72,0.03918973]
[1747924285056,139.82,178.85,178.73,4.74737231]
[1747924285250,5.5932,178.78,178.73,10.34177231]
[1747924285450,139.82,178.85,178.73,4.74737231]
[1747924285655,0.03964518,178.81,178.77,0.03843205]
[1747924286257,0.03964518,178.81,178.79,5.5925]
[1747924286454,0.03964518,178.81,178.77,0.03843205]
[1747924286959,0.03964518,178.81,178.77,1.95633205]
[1747924287150,139.82,178.85,178.77,1.95633205]
[1747924287357,139.82,178.89,178.77,1.95633205]
[1747924287553,139.82,178.89,178.77,1.9179]
[1747924287755,139.82,178.93,178.77,1.9179]
[1747924287959,157.12460074,178.97,178.78,4.75488224]
[1747924288163,0.04218375,178.89,178.86,0.03627894]
[1747924288361,139.8,178.97,178.86,139.83989514]
[1747924288661,139.8,178.97,178.86,139.8]
[1747924289064,5.5886,178.92,178.87,5.5899]
[1747924289258,0.0356647,178.91,178.88,0.03715578]
[1747924289764,5.6244647,178.91,178.88,0.03715578]
[1747924289967,0.0356647,178.91,178.88,0.03715578]
[1747924290363,5.5895,178.89,178.88,0.03715578]
[1747924290858,5.5892,178.9,178.88,0.03715578]
[1747924291164,0.0356647,178.91,178.88,0.03715578]
[1747924291558,5.5895,178.89,178.88,0.03715578]
[1747924291764,0.0356647,178.91,178.88,0.03715578]
[1747924291959,0.0356647,178.91,178.88,10.39940878]
[1747924292361,139.8,178.97,178.88,4.80990878]
[1747924292560,139.78,179.01,178.88,4.80990878]
[1747924292766,139.78,179.01,178.88,4.772753]
[1747924293363,0.03910594,178.96,178.93,0.03872492]
[1747924293559,5.5879,178.94,178.93,0.03872492]
[1747924293760,0.03910594,178.96,178.93,0.03872492]
[1747924294067,0.03910594,178.96,178.94,4.772753]
[1747924294260,5.5876,178.95,178.94,4.772753]
[1747924294461,0.03910594,178.96,178.94,4.772753]
[1747924294865,5.5876,178.95,178.94,4.772753]
[1747924295265,0.03910594,178.96,178.94,4.772753]
[1747924295458,5.5863,179.0,178.94,4.772753]
[1747924295664,623.06,179.04,178.94,4.772753]
[1747924296371,5.5869,178.98,178.94,4.772753]
[1747924296571,0.04149847,179.01,178.97,0.03611772]
[1747924296964,0.04149847,179.01,178.9,3.8697]
[1747924297160,157.06460074,179.04,178.9,3.8697]
[1747924297773,157.06460074,179.04,178.9,9.4588]
[1747924297982,5.5872,178.97,178.95,0.03882241]
[1747924298165,0.03841374,178.99,178.95,0.03882241]
[1747924298562,0.03841374,178.99,178.96,4.78067294]
[1747924299276,5.587,178.97,178.96,4.78067294]
[1747924299871,0.03841374,178.99,178.96,4.78067294]
[1747924299872,0.03841374,178.99,178.96,10.36777294]
[1747924300075,0.03841374,178.99,178.97,4.78067294]
[1747924300469,0.03841374,178.99,178.97,10.36747294]
[1747924300670,139.7,179.09,178.97,4.78067294]